bitfinex/quotes_BTCUSD_20241110
["timestamp","ask_amount","ask_price","bid_price","bid_amount"]
[1731266642431,0.001682,80339.0,80338.0,0.2858018]
[1731266642630,0.001682,80339.0,80338.0,0.28829092]
[1731266644500,0.001682,80339.0,80338.0,0.29829092]
[1731266644698,0.001682,80339.0,80338.0,0.43837612]
[1731266644981,0.001682,80339.0,80338.0,0.2958018]
[1731266645818,0.001682,80339.0,80338.0,0.3958018]
[1731266648313,0.001682,80339.0,80338.0,0.28885028]
[1731266648515,0.001682,80339.0,80338.0,0.31412901]
[1731266648727,0.001682,80339.0,80338.0,0.39793244]
[1731266649318,0.001682,80339.0,80338.0,0.39593244]
[1731266649970,0.001682,80339.0,80338.0,0.39793244]
[1731266650170,0.001682,80339.0,80338.0,0.66440676]
[1731266651909,0.001682,80339.0,80338.0,0.66238562]
[1731266652542,0.00125108,80339.0,80338.0,0.5198113]
[1731266652741,0.03,80345.0,80344.0,0.005]
[1731266652940,0.03,80345.0,80344.0,0.25775624]
[1731266653278,0.03,80345.0,80344.0,0.25275624]
[1731266653279,0.025,80345.0,80344.0,0.25275624]
[1731266653612,0.025,80345.0,80344.0,0.40533056]
[1731266654390,0.015,80345.0,80344.0,0.42733056]
[1731266655530,0.015,80345.0,80344.0,0.42533056]
[1731266655946,0.015,80345.0,80344.0,0.5605349]
[1731266656153,0.028,80354.0,80353.0,0.2539]
[1731266656326,0.028,80354.0,80353.0,0.62947755]
[1731266656534,0.028,80354.0,80353.0,0.6585285]
[1731266656740,1e-06,80354.0,80353.0,0.6815285]
[1731266657121,1e-06,80365.0,80355.0,0.03]
[1731266657322,1e-06,80365.0,80354.0,0.123]
[1731266657323,1e-06,80365.0,80364.0,0.15594221]
[1731266657530,1e-06,80365.0,80364.0,0.29285488]
[1731266658185,1e-06,80368.0,80364.0,0.29285488]
[1731266658391,0.21613078,80375.0,80374.0,0.03]
[1731266658592,0.21613078,80375.0,80374.0,0.21645496]
[1731266658804,0.21613078,80375.0,80374.0,0.23451138]
[1731266659002,0.03,80375.0,80374.0,0.23451138]
[1731266659211,0.43,80375.0,80374.0,0.23451138]
[1731266659830,0.43,80375.0,80374.0,0.21645496]
[1731266662165,0.43,80375.0,80374.0,0.15594221]
[1731266662370,0.43,80375.0,80374.0,0.21624053]
[1731266663200,0.00124309,80376.0,80374.0,0.31624053]
[1731266663416,0.00124309,80376.0,80375.0,0.21624053]
[1731266663625,0.00124309,80376.0,80375.0,0.25404996]
[1731266664915,0.00124309,80376.0,80375.0,0.15351796]
[1731266666059,0.00124309,80376.0,80375.0,0.19986351]
[1731266666853,0.03,80379.0,80375.0,0.19986351]
[1731266666854,0.02624309,80379.0,80375.0,0.19986351]
[1731266667078,0.02624309,80379.0,80377.0,0.03]
[1731266667281,0.02624309,80378.0,80377.0,0.03]
[1731266667616,0.02624309,80378.0,80377.0,0.13659639]
[1731266668383,0.02624309,80378.0,80377.0,0.2625386]
[1731266670398,0.02624309,80378.0,80377.0,0.26248125]
[1731266672305,0.32908123,80388.0,80378.0,0.1]
[1731266672549,0.000705,80409.0,80388.0,0.153]
[1731266672784,0.000705,80409.0,80399.0,0.03]
[1731266673259,0.000705,80409.0,80400.0,0.00248674]
[1731266673479,0.000705,80409.0,80400.0,0.23899097]
[1731266673707,0.000705,80409.0,80400.0,0.13899097]
[1731266674121,0.000705,80409.0,80400.0,0.23899097]
[1731266674530,0.000705,80409.0,80400.0,0.36493318]
[1731266674770,0.000705,80409.0,80400.0,0.32540149]
[1731266674969,0.000705,80409.0,80400.0,0.25594221]
[1731266675185,0.000705,80409.0,80400.0,0.25842909]
[1731266675789,0.000705,80409.0,80400.0,0.25594221]
[1731266676231,0.000705,80409.0,80400.0,0.25842905]
[1731266676421,0.000705,80409.0,80400.0,0.3623881]
[1731266677291,0.02884323,80410.0,80400.0,0.09016507]
[1731266677473,0.1865544,80409.0,80402.0,0.03]
[1731266677639,0.1865544,80409.0,80404.0,0.03]
[1731266677855,0.1865544,80409.0,80406.0,0.03]
[1731266678022,0.1865544,80409.0,80408.0,0.03]
[1731266678392,0.03384323,80410.0,80408.0,0.05313023]
[1731266678596,0.03384323,80410.0,80408.0,0.03]
[1731266678597,0.04958423,80409.0,80408.0,0.03]
[1731266678801,0.005,80409.0,80408.0,0.03]
[1731266678938,0.03384323,80410.0,80408.0,0.03]
[1731266679161,0.005,80409.0,80408.0,0.03]
[1731266680032,0.005,80409.0,80408.0,0.06701425]
[1731266680233,0.08303393,80410.0,80408.0,0.06701425]
[1731266680432,0.005,80408.0,80383.0,0.13]
[1731266680653,0.005,80408.0,80392.0,0.13]
[1731266680939,0.1865544,80406.0,80394.0,0.03]
[1731266681139,0.1865544,80406.0,80396.0,0.03]
[1731266681359,0.1865544,80406.0,80398.0,0.03]
[1731266681598,0.14197432,80402.0,80399.0,0.03702054]
[1731266681841,0.01,80401.0,80400.0,0.03]
[1731266682077,0.23766274,80401.0,80400.0,0.03]
[1731266682485,0.23766274,80401.0,80378.0,0.03]
[1731266682486,0.005,80391.0,80378.0,0.03]
[1731266682736,0.005,80390.0,80383.0,0.03]
[1731266682846,0.005,80390.0,80385.0,0.03]
[1731266683924,0.005,80390.0,80386.0,0.03]
[1731266685065,0.005,80390.0,80387.0,0.03]
[1731266686069,0.005,80390.0,80388.0,0.03]
[1731266687032,0.005,80393.0,80389.0,0.03]
[1731266687490,0.01,80393.0,80389.0,0.03]
[1731266688110,0.01,80393.0,80379.0,0.12594221]
[1731266688111,0.01,80393.0,80390.0,0.03]
[1731266689111,0.01,80393.0,80379.0,0.12594221]
[1731266689112,0.01,80393.0,80391.0,0.03]
[1731266690032,0.01,80393.0,80380.0,0.03]
[1731266690228,0.01,80393.0,80388.0,0.00084]
[1731266690855,0.005,80390.0,80388.0,0.00084]
[1731266694619,0.005,80394.0,80389.0,0.0024878]
[1731266694831,0.005,80394.0,80388.0,0.00084]
[1731266695062,0.005,80394.0,80389.0,0.15842982]
[1731266695507,0.005,80398.0,80389.0,0.15842982]
[1731266695770,0.005,80394.0,80389.0,0.15842982]
[1731266696371,0.1915544,80398.0,80389.0,0.15594221]
[1731266696573,0.005,80394.0,80389.0,0.15594221]
[1731266697095,0.005,80394.0,80390.0,0.00248756]
[1731266697269,0.005,80394.0,80391.0,0.03]
[1731266697910,0.0523,80400.0,80388.0,0.00084]
[1731266697911,0.005,80400.0,80393.0,0.03]
[1731266698115,0.00168,80401.0,80395.0,0.03]
[1731266698343,0.00168,80401.0,80388.0,0.00084]
[1731266698344,0.00168,80401.0,80397.0,0.03]
[1731266698558,0.00168,80401.0,80388.0,0.00084]
[1731266698559,0.00168,80401.0,80399.0,0.03]
[1731266698761,0.005,80400.0,80399.0,0.03]
[1731266699737,0.09898842,80400.0,80399.0,0.03]
[1731266700406,0.22336642,80400.0,80399.0,0.03]
[1731266700532,0.22167242,80400.0,80399.0,0.03]
[1731266700947,0.09729442,80400.0,80399.0,0.03]
[1731266701242,0.09729442,80400.0,80399.0,0.0263]
[1731266701402,0.22167242,80400.0,80399.0,0.0244]
[1731266701616,0.09729442,80400.0,80399.0,0.0244]
[1731266702417,0.09791142,80400.0,80399.0,0.0244]
[1731266703030,0.09959142,80400.0,80399.0,0.0244]
[1731266704549,0.21566342,80400.0,80399.0,0.016094]
[1731266709111,0.1647296,80400.0,80399.0,0.016094]
[1731266711551,0.1877296,80400.0,80399.0,0.016094]
[1731266711746,0.1877296,80400.0,80389.0,0.00084]
[1731266711747,0.124393,80390.0,80389.0,0.00084]
[1731266711957,0.56950953,80390.0,80389.0,0.00084]
[1731266712163,0.54168087,80390.0,80389.0,0.00084]
[1731266712359,0.7209957,80390.0,80389.0,0.00084]
[1731266712584,0.68625519,80390.0,80389.0,0.00084]
[1731266712844,0.023,80380.0,80377.0,0.63272733]
[1731266713052,0.124428,80368.0,80347.0,0.0806]
[1731266713275,0.1,80370.0,80347.0,0.0806]
[1731266713483,0.1,80370.0,80340.0,0.0806]
[1731266713484,0.124444,80358.0,80340.0,0.0806]
[1731266713836,0.124438,80362.0,80340.0,0.0806]
[1731266714036,0.124433,80365.0,80340.0,0.0856]
[1731266714693,0.124433,80365.0,80340.0,0.0806]
[1731266714846,0.1,80365.0,80340.0,0.0856]
[1731266715690,0.224433,80365.0,80340.0,0.0856]
[1731266716281,0.15072539,80365.0,80340.0,0.0856]
[1731266716752,0.124434,80364.0,80340.0,0.0806]
[1731266716900,0.124436,80363.0,80340.0,0.0806]
[1731266717120,0.27515839,80365.0,80340.0,0.0856]
[1731266717297,0.15072539,80365.0,80340.0,0.0856]
[1731266718172,0.27515839,80365.0,80340.0,0.0856]
[1731266718387,0.248868,80364.0,80340.0,0.0806]
[1731266718591,0.26701232,80361.0,80340.0,0.0806]
[1731266718800,0.124441,80359.0,80340.0,0.0806]
[1731266719015,0.26702132,80355.0,80340.0,0.0806]
[1731266722445,0.36702132,80355.0,80335.0,0.0473]
[1731266722964,0.36702132,80355.0,80334.0,0.0806]
[1731266722965,0.49202132,80355.0,80334.0,0.0806]
[1731266723616,0.7590981,80355.0,80334.0,0.0806]
[1731266723814,0.64096353,80355.0,80333.0,0.000841]
[1731266724061,0.78353785,80355.0,80333.0,0.000841]
[1731266724185,0.69133672,80355.0,80333.0,0.000841]
[1731266726679,0.69966524,80355.0,80333.0,0.000841]
[1731266730022,0.30127603,80355.0,80340.0,0.0772]
[1731266730268,0.42572303,80355.0,80340.0,0.0772]
[1731266731316,0.61579735,80355.0,80333.0,0.000841]
[1731266731521,0.14257432,80334.0,80333.0,0.000841]
[1731266731720,0.023,80354.0,80333.0,0.000841]
[1731266731721,0.14257432,80340.0,80333.0,0.000841]
[1731266732103,0.00819452,80339.0,80333.0,0.000841]
[1731266734921,0.14257432,80334.0,80333.0,0.000841]
[1731266735324,0.14541988,80334.0,80333.0,0.000841]
[1731266735765,0.26989988,80334.0,80333.0,0.000841]
[1731266736133,0.26989988,80334.0,80320.0,0.000841]
[1731266736134,0.12452,80308.0,80306.0,0.001408]
[1731266736346,0.24257432,80308.0,80306.0,0.001408]
[1731266736562,0.37247939,80308.0,80306.0,0.001408]
[1731266736802,0.24795939,80308.0,80306.0,0.001408]
[1731266737019,0.24795939,80308.0,80307.0,0.000791]
[1731266737020,0.10538507,80308.0,80307.0,0.000791]
[1731266737242,0.24795939,80308.0,80307.0,0.000791]
[1731266739050,0.25072435,80308.0,80307.0,0.000791]
[1731266740270,0.30018799,80308.0,80307.0,0.07028235]
[1731266741285,0.34299452,80308.0,80307.0,0.07028235]
[1731266742054,0.05761367,80308.0,80307.0,0.07028235]
[1731266742255,0.30018799,80308.0,80307.0,0.07028235]
[1731266743032,0.46751452,80308.0,80307.0,0.13995739]
[1731266743669,0.61645673,80308.0,80307.0,0.13995739]
[1731266743903,0.61645673,80308.0,80307.0,0.09350736]
[1731266744315,0.75903105,80308.0,80307.0,0.09350736]
[1731266744522,0.61645673,80308.0,80307.0,0.09350736]
[1731266744902,0.75903105,80308.0,80307.0,0.09350736]
[1731266745538,0.61645673,80308.0,80307.0,0.09350736]
[1731266745672,0.6103159,80308.0,80307.0,0.09350736]
[1731266746087,0.75289022,80308.0,80307.0,0.07028235]
[1731266746295,0.6103159,80308.0,80307.0,0.09344667]
[1731266746731,0.6103159,80308.0,80307.0,0.13975042]
[1731266747775,0.6103159,80308.0,80307.0,0.1397113]
[1731266747908,0.5736502,80308.0,80307.0,0.1397113]
[1731266749358,0.5753342,80308.0,80307.0,0.1397113]
[1731266750587,0.56718417,80308.0,80307.0,0.1397113]
[1731266751222,0.53918827,80308.0,80307.0,0.13966588]
[1731266752093,0.68176259,80308.0,80307.0,0.13966588]
[1731266752292,0.53918827,80308.0,80307.0,0.07017453]
[1731266752521,0.01,80300.0,80273.0,0.001408]
[1731266752727,0.128,80298.0,80286.0,0.1865544]
[1731266752918,0.1,80298.0,80279.0,0.0467]
[1731266753145,0.1865544,80297.0,80279.0,0.0467]
[1731266753339,0.1,80296.0,80279.0,0.0467]
[1731266753544,0.1,80296.0,80279.0,0.0377]
[1731266753882,0.14257432,80286.0,80279.0,0.0377]
[1731266754936,0.1,80291.0,80279.0,0.0377]
[1731266755120,0.1865544,80287.0,80279.0,0.0377]
[1731266757053,0.05108656,80291.0,80279.0,0.16364221]
[1731266757255,0.1865544,80288.0,80279.0,0.16364221]
[1731266760534,0.1865544,80288.0,80280.0,0.04631047]
[1731266760770,0.1865544,80288.0,80281.0,0.04631047]
[1731266760945,0.1865544,80288.0,80282.0,0.04631047]
[1731266761149,0.1865544,80288.0,80283.0,0.04631047]
[1731266761353,0.15024729,80296.0,80284.0,0.04631047]
[1731266761495,0.15024729,80296.0,80285.0,0.04631047]
[1731266761698,0.29282161,80296.0,80286.0,0.04631047]
[1731266761922,0.29282161,80296.0,80287.0,0.03631047]
[1731266762208,0.29282161,80296.0,80279.0,0.16448421]
[1731266762593,0.14257432,80289.0,80279.0,0.038542]
[1731266762795,0.14257432,80289.0,80279.0,0.000842]
[1731266763038,0.14257432,80283.0,80279.0,0.000842]
[1731266763487,0.1,80282.0,80279.0,0.000842]
[1731266763936,0.124564,80280.0,80279.0,0.000842]
[1731266764157,0.1,80282.0,80279.0,0.000842]
[1731266764383,0.224561,80282.0,80279.0,0.000842]
[1731266764569,0.124562,80281.0,80280.0,0.02323612]
[1731266764773,0.1,80282.0,80280.0,0.02323612]
[1731266765028,0.1,80282.0,80281.0,0.02323612]
[1731266765239,0.22456,80282.0,80281.0,0.02113612]
[1731266765679,0.35050221,80282.0,80281.0,0.02113612]
[1731266765891,0.22594221,80282.0,80281.0,0.02113612]
[1731266766065,0.35050221,80282.0,80281.0,0.02113612]
[1731266768234,0.39985283,80282.0,80281.0,0.02113612]
[1731266769628,0.39985283,80282.0,80263.0,0.0763]
[1731266769629,0.005,80245.0,80235.0,0.02393217]
[1731266769779,0.14257432,80250.0,80230.0,0.17411521]
[1731266769780,0.005,80242.0,80236.0,0.00930822]
[1731266769981,0.005,80244.0,80237.0,0.04654202]
[1731266770185,0.124604,80255.0,80238.0,0.04655005]
[1731266770186,0.005,80255.0,80238.0,0.04655005]
[1731266770416,0.005,80250.0,80239.0,0.04655005]
[1731266770630,0.005,80250.0,80230.0,0.0817]
[1731266770631,0.005,80255.0,80240.0,0.04655005]
[1731266770899,0.1865544,80247.0,80241.0,0.12825005]
[1731266771116,0.1865544,80247.0,80242.0,0.04655005]
[1731266771333,0.005,80243.0,80241.0,0.0817]
[1731266771540,0.005,80243.0,80242.0,0.046464]
[1731266772344,0.005,80243.0,80231.0,0.0817]
[1731266772563,0.005,80238.0,80232.0,0.04643381]
[1731266772761,0.005,80238.0,80233.0,0.04643381]
[1731266772967,0.005,80238.0,80234.0,0.04643381]
[1731266773171,0.005,80238.0,80231.0,0.0817]
[1731266773172,0.005,80238.0,80235.0,0.04643381]
[1731266773388,0.005,80238.0,80236.0,0.04643381]
[1731266773590,0.005,80238.0,80231.0,0.0817]
[1731266773591,0.1865544,80237.0,80231.0,0.0817]
[1731266773796,0.005,80238.0,80226.0,0.001408]
[1731266773797,0.005,80238.0,80232.0,0.04641274]
[1731266774011,0.005,80235.0,80233.0,0.04641274]
[1731266774214,0.005,80235.0,80226.0,0.001408]
[1731266774215,0.005,80235.0,80234.0,0.04641274]
[1731266774619,0.005,80235.0,80234.0,0.03641274]
[1731266776754,0.005,80235.0,80226.0,0.001408]
[1731266777372,0.04940023,80243.0,80227.0,0.12594221]
[1731266777575,0.1865544,80237.0,80228.0,0.1283]
[1731266779205,0.005,80235.0,80228.0,0.1283]
[1731266779778,0.005,80235.0,80228.0,0.0796]
[1731266779959,0.14257432,80231.0,80226.0,0.001408]
[1731266780172,0.005,80235.0,80226.0,0.001408]
[1731266780603,0.1865544,80237.0,80226.0,0.001408]
[1731266780604,0.005,80236.0,80226.0,0.001408]
[1731266780834,0.1865544,80228.0,80226.0,0.001408]
[1731266780999,0.14257432,80230.0,80226.0,0.001408]
[1731266781661,0.14257432,80230.0,80227.0,0.02315574]
[1731266781862,0.14257432,80230.0,80228.0,0.02315574]
[1731266782032,0.14257432,80230.0,80229.0,0.02315574]
[1731266782285,0.13257432,80230.0,80229.0,0.02315574]
[1731266782504,0.13257432,80230.0,80229.0,0.06946537]
[1731266785090,0.13257432,80230.0,80229.0,0.06945226]
[1731266785667,0.1865544,80237.0,80229.0,0.06945226]
[1731266785668,0.005,80236.0,80229.0,0.07029426]
[1731266785870,0.005,80235.0,80229.0,0.000842]
[1731266786071,0.006684,80235.0,80230.0,0.06945061]
[1731266786279,0.006684,80235.0,80231.0,0.06945061]
[1731266786490,0.006684,80235.0,80229.0,0.000842]
[1731266786491,0.14257432,80232.0,80229.0,0.000842]
[1731266786854,0.14257432,80232.0,80230.0,0.0694585]
[1731266787056,0.006684,80235.0,80231.0,0.0694585]
[1731266787263,0.006684,80235.0,80232.0,0.0694585]
[1731266787467,0.006684,80235.0,80233.0,0.0694585]
[1731266787581,0.006684,80235.0,80234.0,0.02315283]
[1731266788069,0.006684,80235.0,80234.0,0.06946788]
[1731266788384,0.001684,80235.0,80234.0,0.02315283]
[1731266788584,0.001684,80235.0,80234.0,0.15248087]
[1731266789763,0.001684,80235.0,80234.0,0.15251642]
[1731266790571,0.001684,80235.0,80234.0,0.27845863]
[1731266791451,0.001684,80235.0,80234.0,0.20894221]
[1731266791655,0.001684,80235.0,80234.0,0.27849617]
[1731266795766,0.001684,80235.0,80234.0,0.15255396]
[1731266795986,0.001684,80235.0,80234.0,0.02318465]
[1731266796862,0.05167043,80235.0,80234.0,0.02318465]
[1731266797405,0.006684,80235.0,80234.0,0.02318465]
[1731266797602,0.006684,80235.0,80234.0,0.01260896]
[1731266798001,0.052884,80235.0,80234.0,0.01260896]
[1731266798223,0.73258793,80235.0,80234.0,0.00236418]
[1731266798449,0.73258793,80235.0,80229.0,0.000842]
[1731266798450,0.124641,80230.0,80229.0,0.000842]
[1731266798638,0.25058321,80230.0,80229.0,0.000842]
[1731266799225,0.005,80230.0,80229.0,0.000842]
[1731266806040,0.001684,80235.0,80230.0,0.083]
[1731266806261,0.1865544,80234.0,80231.0,0.03723789]
[1731266806467,0.1865544,80234.0,80230.0,0.083]
[1731266806644,0.1865544,80234.0,80231.0,0.0372372]
[1731266806843,0.1865544,80234.0,80230.0,0.083]
[1731266807115,0.1865544,80234.0,80231.0,0.03723725]
[1731266807277,0.001684,80235.0,80230.0,0.083]
[1731266807477,0.001684,80235.0,80231.0,0.03723667]
[1731266807697,0.001684,80235.0,80230.0,0.083]
[1731266808416,0.001684,80235.0,80229.0,0.000842]
[1731266809174,0.001684,80235.0,80229.0,0.00333459]
[1731266809397,0.001684,80235.0,80229.0,0.000842]
[1731266809398,0.005,80230.0,80229.0,0.000842]
[1731266811493,0.05581465,80230.0,80229.0,0.000842]
[1731266811891,0.005,80230.0,80229.0,0.000842]
[1731266814505,0.05568818,80233.0,80229.0,0.000842]
[1731266815154,0.02,80231.0,80229.0,0.000842]
[1731266817143,0.14425832,80235.0,80230.0,0.02327177]
[1731266817413,0.14425832,80235.0,80231.0,0.02327154]
[1731266817608,0.14425832,80235.0,80232.0,0.02327154]
[1731266817763,0.14425832,80235.0,80229.0,0.000842]
[1731266817981,0.005,80233.0,80230.0,0.02327187]
[1731266818159,0.005,80233.0,80229.0,0.000842]
[1731266819230,0.005,80231.0,80229.0,0.000842]
[1731266819601,0.3161954,80230.0,80229.0,0.000842]
[1731266819804,0.129641,80230.0,80229.0,0.000842]
[1731266820592,0.25558321,80230.0,80229.0,0.000842]
[1731266823209,0.39386049,80230.0,80229.0,0.000842]
[1731266826410,0.26921949,80230.0,80229.0,0.000842]
[1731266826891,0.23094221,80230.0,80229.0,0.000842]
[1731266827194,0.35558321,80230.0,80229.0,0.000842]
[1731266827760,0.3938703,80230.0,80229.0,0.000842]
[1731266829388,0.3988703,80230.0,80229.0,0.000842]
[1731266834981,0.3938703,80230.0,80229.0,0.000842]
[1731266839314,0.3988703,80230.0,80229.0,0.000842]
[1731266839882,0.3989203,80230.0,80229.0,0.000842]
[1731266840437,0.54149462,80230.0,80229.0,0.000842]
[1731266841818,0.53649462,80230.0,80229.0,0.000842]
[1731266842014,0.57322636,80230.0,80229.0,0.000842]
[1731266842220,0.14333709,80230.0,80229.0,0.000842]
[1731266842427,0.00505,80230.0,80229.0,0.000842]
[1731266842637,0.10505,80230.0,80229.0,0.000842]
[1731266843067,0.10005,80230.0,80229.0,0.000842]
[1731266843695,0.1,80230.0,80229.0,0.000842]
[1731266843895,0.02187017,80231.0,80229.0,0.000842]
[1731266844520,0.02187017,80231.0,80230.0,0.02328881]
[1731266844733,0.02187017,80231.0,80229.0,0.000842]
[1731266844939,0.124641,80230.0,80229.0,0.000842]
[1731266845148,0.224641,80230.0,80229.0,0.000842]
[1731266845370,0.38889706,80230.0,80229.0,0.000842]
[1731266846614,0.03831385,80230.0,80229.0,0.000842]
[1731266846821,0.13831385,80230.0,80229.0,0.000842]
[1731266847035,0.1,80230.0,80229.0,0.000842]
[1731266847867,0.1,80230.0,80206.0,0.04660072]
[1731266847868,0.22594221,80230.0,80206.0,0.04660072]
[1731266848074,0.16444449,80231.0,80198.0,0.07594787]
[1731266848075,0.1,80205.0,80198.0,0.00141]
[1731266848305,0.124686,80201.0,80198.0,0.00141]
[1731266848441,0.224685,80202.0,80198.0,0.00141]
[1731266848645,0.124685,80202.0,80198.0,0.00141]
[1731266848887,0.1,80202.0,80198.0,0.00141]
[1731266850090,0.14257432,80206.0,80198.0,0.00141]
[1731266850091,0.1,80205.0,80198.0,0.00141]
[1731266850312,0.2865544,80205.0,80198.0,0.00141]
[1731266850513,0.1,80203.0,80198.0,0.00141]
[1731266851685,0.150464,80205.0,80198.0,0.00141]
[1731266851889,0.1,80203.0,80198.0,0.00141]
[1731266853553,0.1,80205.0,80198.0,0.00141]
[1731266857902,0.001684,80235.0,80201.0,0.1277]
[1731266857903,0.04171361,80221.0,80201.0,0.1277]
[1731266858109,0.1865544,80204.0,80201.0,0.1277]
[1731266858317,0.14257432,80202.0,80201.0,0.1277]
[1731266860270,0.14257432,80202.0,80201.0,0.0817]
[1731266860898,0.14257432,80202.0,80201.0,0.1049648]
[1731266861112,0.1,80213.0,80201.0,0.10496439]
[1731266861331,0.05096157,80210.0,80201.0,0.10496439]
[1731266861566,0.1865544,80216.0,80203.0,0.046]
[1731266861785,0.14257432,80211.0,80204.0,0.02326439]
[1731266862038,0.14257432,80211.0,80205.0,0.02326439]
[1731266862248,0.1865544,80216.0,80206.0,0.02326439]
[1731266862464,0.1865544,80216.0,80207.0,0.21013562]
[1731266862465,0.0502076,80216.0,80207.0,0.21013562]
[1731266862662,0.001686,80218.0,80207.0,0.27061611]
[1731266862663,0.1865544,80215.0,80207.0,0.27061611]
[1731266863119,0.1865544,80215.0,80208.0,0.06048049]
[1731266863320,0.14257432,80217.0,80209.0,0.12594221]
[1731266863532,0.1865544,80216.0,80209.0,0.12843544]
[1731266864155,0.1865544,80216.0,80210.0,0.02326004]
[1731266864384,0.1865544,80216.0,80210.0,0.06047611]
[1731266864612,0.14257432,80211.0,80210.0,0.06047611]
[1731266865473,0.14257432,80211.0,80210.0,0.03721607]
[1731266868430,0.14257432,80211.0,80210.0,0.06048101]
[1731266868628,0.05346842,80218.0,80210.0,0.06048101]
[1731266868629,0.14257432,80217.0,80210.0,0.06048101]
[1731266868834,0.1865544,80216.0,80211.0,0.02326494]
[1731266869064,0.14257432,80217.0,80212.0,0.02326494]
[1731266869270,0.14257432,80217.0,80213.0,0.02326494]
[1731266869509,0.14257432,80217.0,80214.0,0.02326494]
[1731266869701,0.14257432,80217.0,80215.0,0.02326494]
[1731266869942,0.14257432,80217.0,80216.0,0.02326494]
[1731266873666,0.14261432,80217.0,80216.0,0.02326494]
[1731266874082,4e-05,80217.0,80216.0,0.27110715]
[1731266874255,4e-05,80217.0,80216.0,0.35735977]
[1731266874492,4e-05,80217.0,80216.0,0.41997045]
[1731266874713,4e-05,80217.0,80216.0,0.54297045]
[1731266874953,0.1865544,80229.0,80228.0,0.12685]
[1731266875156,0.1865544,80229.0,80228.0,0.35981696]
[1731266875605,0.1865544,80229.0,80228.0,0.35969439]
[1731266875837,0.001684,80234.0,80233.0,0.00495]
[1731266876052,0.001684,80234.0,80233.0,0.23779439]
[1731266876253,0.00736613,80234.0,80233.0,0.23779439]
[1731266877487,0.00736613,80234.0,80233.0,0.23284439]
[1731266877842,5e-05,80250.0,80248.0,0.00495]
[1731266878046,5e-05,80250.0,80249.0,0.26176518]
[1731266878485,5e-05,80250.0,80249.0,0.13582297]
[1731266878684,0.14262432,80250.0,80249.0,0.11258337]
[1731266878906,0.14262432,80250.0,80249.0,0.09858612]
[1731266879753,5e-05,80250.0,80249.0,0.09857403]
[1731266879977,5e-05,80250.0,80249.0,0.22451624]
[1731266880386,5e-05,80250.0,80249.0,0.26159276]
[1731266880536,5e-05,80250.0,80249.0,0.22451624]
[1731266880746,5e-05,80250.0,80249.0,0.27101624]
[1731266880960,5e-05,80250.0,80249.0,0.30809153]
[1731266882756,5e-05,80250.0,80249.0,0.31304153]
[1731266882964,5e-05,80250.0,80249.0,0.35933146]
[1731266883444,5e-05,80250.0,80249.0,0.49233146]
[1731266884897,5e-05,80250.0,80249.0,0.46933146]
[1731266885066,5e-05,80250.0,80249.0,0.46912489]
[1731266888735,5e-05,80250.0,80249.0,0.49212489]
[1731266888873,0.1865544,80265.0,80249.0,0.49212489]
[1731266888874,0.1865544,80265.0,80264.0,0.08235]
[1731266889074,0.1865544,80265.0,80264.0,0.31462489]
[1731266889290,5e-05,80280.0,80265.0,0.00495]
[1731266889498,5e-05,80280.0,80266.0,0.23227489]
[1731266889699,5e-05,80280.0,80267.0,0.10633268]
[1731266889949,5e-05,80280.0,80268.0,0.23227489]
[1731266890163,5e-05,80280.0,80269.0,0.10633268]
[1731266890308,5e-05,80280.0,80270.0,0.23227489]
[1731266890522,5e-05,80280.0,80271.0,0.10633268]
[1731266890698,5e-05,80280.0,80272.0,0.23227489]
[1731266890904,5e-05,80280.0,80273.0,0.10633268]
[1731266891124,5e-05,80280.0,80274.0,0.10633268]
[1731266891373,5e-05,80280.0,80275.0,0.10633268]
[1731266891545,5e-05,80280.0,80276.0,0.10633268]
[1731266891746,5e-05,80280.0,80277.0,0.10633268]
[1731266891947,5e-05,80280.0,80278.0,0.10633268]
[1731266893181,5e-05,80280.0,80278.0,0.18373268]
[1731266893428,5e-05,80280.0,80279.0,0.10633268]
[1731266894299,0.1865544,80287.0,80279.0,0.10633268]
[1731266894497,0.1865544,80287.0,80280.0,0.10633268]
[1731266894696,0.1865544,80287.0,80281.0,0.10633268]
[1731266894922,0.1865544,80287.0,80282.0,0.10633268]
[1731266895155,0.001684,80288.0,80283.0,0.234766]
[1731266895371,0.001684,80288.0,80286.0,0.00495]
[1731266895594,0.001684,80288.0,80287.0,0.28791546]
[1731266895785,0.000706,80299.0,80288.0,0.00495]
[1731266896009,0.1865544,80293.0,80289.0,0.23476541]
[1731266896222,0.000706,80299.0,80291.0,0.00495]
[1731266896396,0.1865544,80298.0,80292.0,0.23476532]
[1731266896605,0.1865544,80298.0,80293.0,0.10633268]
[1731266896743,0.1865544,80298.0,80294.0,0.23227489]
[1731266896958,0.1865544,80298.0,80295.0,0.10633268]
[1731266897407,0.000706,80299.0,80296.0,0.10633268]
[1731266897609,0.125241,80299.0,80297.0,0.10633268]
[1731266897758,0.125241,80299.0,80298.0,0.10633268]
[1731266898147,0.12467626,80299.0,80298.0,0.10633268]
[1731266901354,0.00014126,80299.0,80298.0,0.10633268]
[1731266902425,5e-05,80300.0,80298.0,0.10633268]
[1731266902630,5e-05,80300.0,80299.0,0.10633268]
[1731266903308,5e-05,80300.0,80299.0,0.10638408]
[1731266903936,0.08663656,80302.0,80299.0,0.10638408]
[1731266904147,0.08663656,80302.0,80300.0,0.10638408]
[1731266904353,0.1865544,80309.0,80286.0,0.1]
[1731266904354,0.1865544,80309.0,80301.0,0.10638408]
[1731266904500,0.1865544,80309.0,80302.0,0.10638408]
[1731266904715,0.1865544,80309.0,80303.0,0.10638408]
[1731266904897,0.1865544,80309.0,80304.0,0.10638408]
[1731266905118,0.1865544,80309.0,80305.0,0.10638408]
[1731266905346,0.000706,80315.0,80306.0,0.10653611]
[1731266905551,0.000706,80315.0,80307.0,0.10653611]
[1731266905787,0.000706,80315.0,80308.0,0.10653611]
[1731266905993,0.000706,80315.0,80309.0,0.10653611]
[1731266906200,0.000706,80315.0,80310.0,0.10653611]